bitfinex/quotes_ETHUSD_20241130
["timestamp","ask_amount","ask_price","bid_price","bid_amount"]
[1732931184511,1.11,3617.3,3615.8,1.1702]
[1732931184863,1.11,3617.3,3616.0,1.1702]
[1732931185026,1.11,3617.3,3616.1,0.02764469]
[1732931185226,1.11,3617.3,3616.0,1.1702]
[1732931185553,2.22,3617.3,3616.0,1.3989612]
[1732931185750,2.22,3617.3,3616.1,0.02764863]
[1732931186055,2.209,3617.3,3615.1,0.02764592]
[1732931186212,2.76482,3616.9,3614.7,1.19785213]
[1732931186419,4.97349,3617.3,3615.0,0.23040191]
[1732931186617,2.209,3617.3,3615.1,1.1702]
[1732931186853,2.209,3617.3,3615.2,0.02765078]
[1732931187056,3.319,3617.3,3615.0,0.23040191]
[1732931187408,2.76497,3616.7,3615.1,0.19025748]
[1732931187544,2.76489,3616.8,3615.1,0.19025748]
[1732931187962,2.76489,3616.8,3614.9,1.106567]
[1732931188113,2.76504,3616.6,3614.9,1.106567]
[1732931188318,2.76504,3616.6,3614.4,1.73028521]
[1732931188512,2.76504,3616.6,3614.5,1.106606]
[1732931188764,2.7651,3616.5,3614.6,0.28368912]
[1732931189119,2.76537,3616.2,3614.6,0.28368912]
[1732931189648,3.87502,3616.6,3614.6,0.28368912]
[1732931189959,2.76512,3616.5,3614.6,0.28368912]
[1732931190116,0.1,3616.5,3614.7,0.02765709]
[1732931190314,2.76518,3616.4,3614.7,0.14815462]
[1732931190541,2.76549,3616.0,3614.7,0.14815462]
[1732931191014,0.1,3616.3,3614.7,0.14815462]
[1732931191227,2.76577,3615.7,3614.7,0.14815462]
[1732931191428,2.76558,3615.9,3614.7,0.14815462]
[1732931191658,0.242,3616.3,3614.8,0.0276633]
[1732931191977,1.11,3615.9,3614.7,3.36684759]
[1732931192265,1.11,3615.9,3614.8,0.33668476]
[1732931192557,3.87556,3615.9,3614.4,1.1702]
[1732931192759,2.76617,3615.2,3614.2,0.1545203]
[1732931192967,2.76631,3615.0,3614.2,0.1545203]
[1732931193564,1.11,3615.0,3614.2,0.1545203]
[1732931193729,1.11,3615.0,3614.3,4.35539297]
[1732931194256,1.11,3615.0,3614.4,3.21869297]
[1732931194873,1.11,3615.0,3614.5,0.55]
[1732931195098,2.17,3615.0,3614.6,0.16867]
[1732931196702,1.1912,3614.9,3614.2,0.1545203]
[1732931196906,3.28,3615.0,3614.2,0.1545203]
[1732931198461,4.39,3615.0,3614.2,0.1545203]
[1732931198685,2.76633,3614.9,3614.2,0.1545203]
[1732931198883,4.39,3615.0,3614.2,0.1545203]
[1732931199128,3.95767,3614.8,3614.2,0.1545203]
[1732931199310,2.76649,3614.7,3614.2,0.1545203]
[1732931199510,1.1912,3614.8,3614.2,0.1545203]
[1732931199989,7.15626,3615.0,3614.2,0.1545203]
[1732931200188,5.5,3615.0,3614.4,3.21869297]
[1732931200387,5.5,3615.0,3614.6,1.1367]
[1732931201489,5.5,3615.0,3614.2,0.1545203]
[1732931201808,6.61,3615.0,3614.2,0.1545203]
[1732931202567,6.61,3615.0,3614.3,1.5417]
[1732931203011,6.61,3615.0,3614.2,0.1545203]
[1732931203212,7.39012,3615.0,3614.2,0.1545203]
[1732931203413,8.50012,3615.0,3614.2,0.1545203]
[1732931203863,2.76638,3614.9,3614.2,0.1545203]
[1732931204215,2.76669,3614.5,3614.2,0.1545203]
[1732931204552,2.76678,3614.3,3614.2,0.1545203]
[1732931205128,11.26644,3615.0,3614.2,1.6962203]
[1732931205129,7.72,3615.0,3614.2,1.6962203]
[1732931205341,7.72,3615.0,3614.3,0.16962203]
[1732931205342,8.83,3615.0,3614.3,0.16962203]
[1732931205710,8.83,3615.0,3614.2,0.1545203]
[1732931206718,8.83,3615.0,3614.3,1.5417]
[1732931206947,9.94,3615.0,3614.2,0.1545203]
[1732931207266,9.94,3615.0,3614.4,0.20312823]
[1732931207565,9.94,3615.0,3614.2,0.1545203]
[1732931207566,9.94,3615.0,3614.5,0.20312823]
[1732931207775,9.94,3615.0,3614.3,0.20312823]
[1732931207776,0.994,3614.9,3614.3,0.20312823]
[1732931208071,9.94,3615.0,3614.4,0.20356411]
[1732931208216,9.94,3615.0,3614.5,0.20356411]
[1732931208409,9.94,3615.0,3614.6,0.20382934]
[1732931208611,11.05,3615.0,3614.7,0.20382934]
[1732931208827,11.05,3615.0,3614.8,0.20382934]
[1732931209023,11.05,3615.0,3614.9,0.20382934]
[1732931210224,12.16,3615.0,3614.9,0.20382934]
[1732931211866,13.27,3615.0,3614.9,0.20382934]
[1732931213522,14.38,3615.0,3614.9,0.20382934]
[1732931213812,14.38,3615.0,3614.9,1.09382934]
[1732931213975,14.38,3615.0,3614.9,1.36455227]
[1732931214534,14.38,3615.0,3614.9,2.70722934]
[1732931215231,15.49,3615.0,3614.9,2.70786713]
[1732931215434,14.97568358,3615.0,3614.9,3.25786713]
[1732931215674,10.85987967,3615.0,3614.9,3.53426713]
[1732931215832,9.79674134,3615.0,3614.9,3.53426713]
[1732931216019,9.79674134,3615.0,3614.9,4.24483263]
[1732931216409,1.11,3615.9,3615.1,3.7434]
[1732931216655,1.11,3615.9,3615.5,0.55]
[1732931216950,1.11,3615.9,3615.3,4.09372873]
[1732931216951,1.11,3615.9,3615.8,1.6134]
[1732931217156,1.11,3615.9,3615.8,2.36786713]
[1732931218009,1.11,3615.9,3615.8,0.75446713]
[1732931218216,1.11,3615.9,3615.8,2.36786713]
[1732931218561,2.22,3615.9,3615.8,2.1634]
[1732931218725,1.79957284,3615.9,3615.8,5.79244817]
[1732931218913,0.13297284,3615.9,3615.8,5.79244817]
[1732931219410,1.11,3616.5,3616.4,5.70712873]
[1732931219613,1.11,3616.5,3616.4,5.9111369]
[1732931220052,2.22,3616.5,3616.4,5.9111369]
[1732931220354,2.22,3616.5,3616.4,6.50225059]
[1732931220853,2.22,3616.5,3616.4,2.95852186]
[1732931221070,2.22,3616.5,3616.4,1.81740817]
[1732931221267,2.22,3616.5,3616.4,0.20400817]
[1732931221475,3.7867,3616.5,3616.4,0.20400817]
[1732931221625,7.6618,3616.5,3616.4,0.20400817]
[1732931221830,4.8967,3616.5,3616.4,0.20400817]
[1732931222929,8.26247,3616.5,3615.1,1.6206]
[1732931223161,1.6537,3616.2,3614.5,1.6206]
[1732931223667,4.41903,3616.2,3614.5,1.6206]
[1732931223877,4.41903,3616.2,3614.6,0.027659]
[1732931224054,1.6537,3616.2,3614.6,0.027659]
[1732931224370,2.323137,3616.2,3614.5,1.6206]
[1732931224758,2.323137,3616.2,3615.0,0.02766115]
[1732931225066,2.7637,3616.2,3614.6,0.02765721]
[1732931225481,1.11,3616.2,3615.0,1.69015526]
[1732931225630,1.11,3616.2,3615.1,0.55]
[1732931225823,1.6575,3616.1,3615.0,1.6625]
[1732931226477,1.6575,3616.1,3614.9,0.91765723]
[1732931226680,1.11,3616.1,3615.0,0.25801572]
[1732931226830,1.11,3616.1,3615.1,1.6625]
[1732931227965,1.11,3616.1,3615.2,0.55]
[1732931228340,2.22,3616.1,3615.1,1.6625]
[1732931229444,2.7655,3616.0,3615.1,1.6625]
[1732931229631,0.886077,3616.0,3615.1,1.6625]
[1732931229857,2.22,3616.1,3615.1,1.6625]
[1732931230170,2.76557,3615.9,3615.0,0.25801572]
[1732931230371,1.6245,3616.0,3614.9,0.89]
[1732931230576,4.38999,3616.0,3614.9,0.89]
[1732931230877,1.6245,3616.0,3614.9,0.89]
[1732931231229,2.76562,3615.9,3614.9,0.89]
[1732931231474,4.38999,3616.0,3614.9,1.13303]
[1732931231670,1.11,3615.9,3614.9,1.13303]
[1732931232234,3.87559,3615.9,3614.9,1.13303]
[1732931232641,3.87562,3615.9,3614.9,1.13303]
[1732931232876,2.76572,3615.7,3614.9,1.13303]
[1732931233468,2.76589,3615.5,3614.9,1.13303]
[1732931233664,1.11,3615.7,3614.9,0.89]
[1732931233836,2.76593,3615.5,3614.9,0.89]
[1732931234031,1.6245,3615.6,3614.9,0.89]
[1732931234930,4.39031,3615.6,3614.9,0.89]
[1732931235132,2.7345,3615.6,3614.9,0.89]
[1732931235650,5.50029,3615.6,3615.0,0.19856604]
[1732931235868,5.50029,3615.6,3614.9,0.89]
[1732931236213,3.506529,3615.6,3615.0,0.19856714]
[1732931236395,2.7345,3615.6,3614.9,0.89]
[1732931236693,5.50034,3615.6,3614.9,0.89]
[1732931236867,3.8445,3615.6,3614.9,0.89]
[1732931237381,2.22,3615.6,3615.1,1.5403]
[1732931238344,2.22,3615.6,3615.1,1.78333]
[1732931238541,3.33,3615.6,3615.1,1.78333]
[1732931240176,4.44,3615.6,3615.1,1.78333]
[1732931240531,4.39,3615.6,3615.1,1.78333]
[1732931240738,4.39,3615.6,3614.9,0.89]
[1732931240739,7.15579,3615.6,3614.9,0.89]
[1732931241083,2.76623,3615.1,3614.9,0.89]
[1732931241837,1.11,3615.1,3614.9,0.89]
[1732931242185,2.76625,3615.0,3614.9,0.89]
[1732931242634,4.39635,3615.0,3614.9,0.89]
[1732931242842,5.223609,3615.0,3614.9,0.89]
[1732931243487,5.223609,3615.0,3614.2,0.1545203]
[1732931243488,1.6301,3614.6,3614.2,0.1545203]
[1732931243796,1.6301,3614.6,3614.2,0.09693396]
[1732931243797,2.76678,3614.3,3614.2,0.09693396]
[1732931244968,3.483131,3614.3,3614.2,0.09693396]
[1732931245185,5.113231,3614.3,3614.2,0.09693396]
[1732931246095,5.37067538,3614.3,3614.2,0.09693396]
[1732931246388,5.113231,3614.3,3614.2,0.09693396]
[1732931248318,6.12024487,3614.3,3614.2,3.96e-06]
[1732931248481,4.40658,3612.8,3612.0,10.0]
[1732931248678,2.76821,3612.5,3612.1,1.0]
[1732931248877,1.6386,3612.8,3612.0,10.0]
[1732931249107,2.76847,3612.1,3612.0,10.0]
[1732931249523,4.40707,3612.1,3612.0,10.0]
[1732931250106,1.6386,3612.1,3612.0,10.0]
[1732931250306,2.76847,3612.1,3612.0,10.0]
[1732931250817,2.7684,3612.2,3612.0,10.0]
[1732931251018,2.76847,3612.1,3612.0,10.0]
[1732931254949,1.6386,3612.8,3612.0,10.0]
[1732931255175,2.76786,3612.9,3612.0,10.0]
[1732931255326,2.76795,3612.8,3612.1,1.15229]
[1732931255531,2.76779,3613.0,3612.1,1.15229]
[1732931255751,2.76755,3613.3,3612.1,1.15229]
[1732931256078,4.40612,3613.4,3612.3,1.5229]
[1732931256275,2.76735,3613.6,3612.4,0.322519]
[1732931256569,4.40578,3613.8,3612.4,0.322519]
[1732931256773,1.6386,3614.2,3612.6,1.5229]
[1732931256956,2.76702,3614.0,3612.7,0.2395419]
[1732931257158,2.7671,3613.9,3612.7,0.2395419]
[1732931257343,2.7671,3613.9,3612.8,0.55]
[1732931257545,1.6386,3614.2,3612.8,0.55]
[1732931257748,1.6386,3614.2,3612.4,0.322519]
[1732931257749,4.40548,3614.2,3612.9,1.5229]
[1732931257979,1.11,3615.0,3613.1,3.23337023]
[1732931258131,2.22,3615.0,3613.4,1.5229]
[1732931258332,2.22,3615.0,3613.8,1.5229]
[1732931258535,2.22,3615.0,3614.5,2.76662]
[1732931258760,2.22,3615.0,3614.0,0.55]
[1732931258994,2.22,3615.0,3614.8,2.76633]
[1732931259205,2.22,3615.0,3614.7,4.2893]
[1732931259491,2.22,3615.0,3614.9,2.76632]
[1732931259673,3.33,3615.0,3614.9,2.76632]
[1732931259877,3.33,3615.0,3614.7,4.71823]
[1732931260089,3.33,3615.0,3614.9,2.76632]
[1732931260497,3.33,3615.0,3614.7,1.95183]
[1732931260702,3.33,3615.0,3614.9,2.76632]
[1732931261297,3.33,3615.0,3614.7,4.71828]
[1732931261505,4.44,3615.0,3614.7,1.95183]
[1732931261808,4.44,3615.0,3614.9,2.76632]
[1732931262010,4.44,3615.0,3614.7,1.95183]
[1732931262310,4.44,3615.0,3614.8,2.76634]
[1732931262807,4.44,3615.0,3614.9,2.76632]
[1732931263181,5.55,3615.0,3614.9,2.76632]
[1732931264103,5.55,3615.0,3614.1,2.76688]
[1732931264104,2.76641,3614.8,3614.3,1.5025]
[1732931264409,2.76703,3614.0,3613.2,2.76758]
[1732931264566,2.76703,3614.0,3613.3,0.19765411]
[1732931264906,2.76724,3613.8,3613.0,4.27024]
[1732931265142,2.76726,3613.7,3613.0,4.27024]
[1732931265403,2.76713,3613.9,3613.0,1.5025]
[1732931265604,2.76695,3614.1,3613.1,0.15025]
[1732931265804,2.76704,3614.0,3613.1,0.15025]
[1732931265963,2.76687,3614.2,3613.1,0.15025]
[1732931266170,2.76705,3614.0,3613.1,0.15025]
[1732931266503,1.508,3614.3,3613.2,0.165275]
[1732931266504,4.22486,3614.3,3613.2,0.165275]
[1732931266864,1.458,3614.3,3613.2,0.165275]
[1732931267064,2.76688,3614.2,3613.2,0.165275]
[1732931267308,2.7671,3613.9,3613.2,0.165275]
[1732931267617,2.7671,3613.9,3613.0,1.5025]
[1732931267910,2.76717,3613.8,3613.0,1.5025]
[1732931268263,2.76702,3614.0,3613.0,1.5025]
[1732931268606,2.76707,3614.0,3613.0,1.5025]
[1732931268811,2.76707,3614.0,3613.0,1.65275]
[1732931268964,2.76686,3614.2,3613.0,1.65275]
[1732931269510,2.76695,3614.1,3613.0,1.65275]
[1732931270013,2.76698,3614.1,3613.0,1.65275]
[1732931270433,2.76701,3614.0,3613.0,1.65275]
[1732931270577,2.76701,3614.0,3613.1,0.165275]
[1732931271079,2.76662,3614.6,3613.3,1.6106]
[1732931271449,3.98568,3614.8,3613.4,0.55]
[1732931271997,2.76648,3614.7,3613.4,0.55]
[1732931272417,3.9857,3614.8,3613.4,0.55]
[1732931272612,2.76649,3614.7,3613.6,0.55]
[1732931272830,11.06739,3615.0,3613.6,0.55]
[1732931273148,6.66,3615.0,3613.7,1.6106]
[1732931273330,6.66,3615.0,3613.8,0.55]
[1732931273499,6.66,3615.0,3614.0,0.55]
[1732931273838,6.66,3615.0,3614.1,1.6106]
[1732931274498,7.77,3615.0,3614.2,0.55]
[1732931275638,7.77,3615.0,3614.1,1.6106]
[1732931275839,7.77,3615.0,3614.2,0.55]
[1732931276143,7.77,3615.0,3614.2,0.76606]
[1732931276312,8.88,3615.0,3614.2,0.76606]
[1732931278041,9.99,3615.0,3614.2,0.76606]
[1732931279648,9.99,3615.0,3614.2,0.21606]
[1732931279851,13.86632,3615.0,3614.1,1.6106]
[1732931280014,11.1,3615.0,3614.1,1.6106]
[1732931280348,13.86625,3615.0,3614.1,1.6106]
[1732931280655,13.86625,3615.0,3613.2,0.2764]
[1732931280656,2.76641,3614.8,3613.2,1.63826768]
[1732931280848,2.76653,3614.7,3613.2,1.6106]
[1732931281007,2.76653,3614.7,3613.3,0.18035458]
[1732931281206,1.38511,3614.9,3613.4,1.6106]
[1732931281404,13.86627,3615.0,3613.4,1.6106]
[1732931281652,14.97627,3615.0,3613.4,1.6106]
[1732931281848,12.21,3615.0,3613.4,1.6106]
[1732931282017,12.21,3615.0,3613.6,1.6106]
[1732931282206,12.21,3615.0,3613.8,1.6638]
[1732931282404,12.21,3615.0,3613.7,0.02766393]
[1732931282405,12.21,3615.0,3614.0,1.6638]
[1732931282720,12.21,3615.0,3614.2,1.6638]
[1732931283049,12.21,3615.0,3614.3,0.55]
[1732931283206,13.32,3615.0,3614.5,0.55]
[1732931283402,13.32,3615.0,3614.7,0.55]
[1732931283660,8.62593806,3615.0,3614.9,2.2138]
[1732931283859,1.11,3615.0,3614.9,2.5902]
[1732931284156,1.69835828,3616.1,3615.9,0.8264]
[1732931284334,0.94554863,3616.5,3616.2,1.9402]
[1732931284656,0.66764863,3616.5,3616.4,2.2138]
[1732931284945,0.66764863,3616.5,3616.4,2.4902]
[1732931285109,1.11,3618.8,3616.5,2.4902]
[1732931285305,2.76357,3618.5,3616.9,2.2138]
[1732931285529,1.11,3618.8,3617.1,0.55]
[1732931285733,1.11,3618.8,3617.2,2.2138]
[1732931285957,0.01186322,3618.6,3617.2,2.41063489]
[1732931286508,4.429,3617.3,3617.2,2.41063489]
[1732931287012,4.429,3617.3,3617.2,1.86063489]
[1732931287251,4.8719,3617.3,3617.2,0.19683489]
[1732931287556,2.76477,3617.0,3615.5,1.106224]
[1732931287710,2.76477,3617.0,3615.4,1.5109]
[1732931287711,2.76485,3616.9,3615.6,0.19679003]
[1732931287906,2.76497,3616.7,3615.7,0.19679003]
[1732931288152,0.276497,3616.6,3615.8,0.19679003]
[1732931288460,0.276497,3616.6,3615.9,0.19679003]
[1732931288616,0.276497,3616.6,3615.4,1.5109]
[1732931288806,0.276497,3616.6,3615.5,0.19686033]
[1732931289004,0.276497,3616.6,3615.6,0.55]
[1732931289210,1.11,3616.9,3615.7,0.19684466]
[1732931289444,1.11,3616.9,3615.4,1.5109]
[1732931289616,1.11,3616.9,3615.5,0.22446938]
[1732931289825,2.22,3616.9,3615.6,0.37035159]
[1732931290009,2.22,3616.9,3615.8,1.5109]
[1732931290210,2.22,3616.9,3615.9,0.19681465]
[1732931290447,2.22,3616.9,3616.0,0.19681465]
[1732931290658,2.22,3616.9,3616.0,0.02765161]
[1732931290815,2.22,3616.9,3616.2,0.55]
[1732931291154,2.22,3616.9,3616.1,0.55]
[1732931291355,3.33,3616.9,3616.2,0.19666198]
[1732931291665,3.33,3616.9,3616.1,0.55]
[1732931291863,3.33,3616.9,3616.3,0.55]
[1732931292063,3.33,3616.9,3616.4,1.5109]
[1732931292243,3.33,3616.9,3616.5,0.55]
[1732931292411,3.33,3616.9,3616.6,0.19662947]
[1732931292611,3.33,3616.9,3616.5,0.55]
[1732931293138,4.44,3616.9,3616.5,0.55]
[1732931293323,4.44,3616.9,3616.6,0.1964151]
[1732931293526,4.44,3616.9,3616.5,0.55]
[1732931293860,4.44,3616.9,3616.6,0.19636563]
[1732931294057,4.44,3616.9,3616.5,0.75609]
[1732931294350,4.44,3616.9,3616.6,0.19633534]
[1732931294559,4.44,3616.9,3616.5,0.75609]
[1732931294723,5.55,3616.9,3616.7,0.55]
[1732931294913,5.55,3616.9,3616.8,0.19629125]
[1732931295218,5.55,3616.9,3616.4,1.5109]
[1732931295219,5.55,3616.9,3616.5,0.55]
[1732931295859,5.55,3616.9,3616.7,0.55]
[1732931296155,5.55,3616.9,3616.4,1.5109]
[1732931296360,5.55,3616.9,3615.3,4.09769305]
[1732931296361,2.76492,3616.8,3615.9,1.5109]
[1732931296598,0.555,3616.8,3616.0,0.19649167]
[1732931296905,6.66,3616.9,3616.1,0.19648491]
[1732931297099,6.66,3616.9,3615.9,1.5109]
[1732931297775,6.66,3616.9,3616.0,0.55]
[1732931297962,7.77,3616.9,3616.0,0.55]
[1732931299366,10.53482,3616.9,3615.9,1.5109]
[1732931299604,1.053482,3616.8,3615.9,1.5109]
[1732931299803,8.88,3616.9,3615.9,1.5109]
[1732931300706,8.88,3616.9,3616.0,0.1966104]
[1732931300912,8.88,3616.9,3616.1,0.1966104]
[1732931301120,9.99,3616.9,3616.2,0.1966104]
[1732931301400,1.5301,3616.8,3615.2,1.5109]
[1732931301606,1.5301,3615.9,3615.3,0.1968473]
[1732931301755,1.5301,3615.9,3614.7,1.5109]
[1732931301958,1.5301,3615.9,3614.8,0.19690357]
[1732931302257,1.5301,3615.9,3614.9,0.19690357]
[1732931302458,1.5301,3615.9,3615.0,0.19690357]
[1732931302764,1.5301,3615.9,3615.1,0.19690357]
[1732931302955,3.069652,3615.9,3615.2,0.19690357]
[1732931303160,2.76587,3615.5,3614.9,0.19708796]
[1732931303456,2.76587,3615.5,3614.3,1.5041]
[1732931303457,2.76599,3615.4,3615.0,0.19712563]
[1732931303671,2.76599,3615.4,3614.3,1.5041]
[1732931303865,2.76608,3615.3,3614.4,0.34757616]
[1732931304085,1.6021,3615.2,3614.5,0.19716616]
[1732931304282,1.6021,3615.2,3614.6,0.19716616]
[1732931304482,2.76618,3615.1,3613.9,1.5041]
[1732931304701,2.76618,3615.1,3614.0,0.3476541]
[1732931304907,5.4782,3615.2,3614.1,0.1972441]
[1732931305061,2.7121,3615.2,3614.1,0.1972441]
[1732931305257,2.76625,3615.0,3614.2,0.1972441]
[1732931305458,2.76653,3614.7,3613.5,1.5041]
[1732931305759,1.6021,3614.5,3613.6,0.19728226]
[1732931305957,1.6021,3614.5,3613.7,0.19728226]
[1732931306197,4.36874,3614.5,3613.8,0.19728226]
[1732931306395,2.76676,3614.4,3613.8,0.19728226]
[1732931306604,1.6021,3614.5,3613.1,1.5041]
[1732931306816,1.6021,3614.5,3613.2,0.70144614]
[1732931306994,1.6021,3615.1,3613.3,0.19727175]
[1732931307300,4.36828,3615.1,3613.4,0.19727175]
[1732931307503,2.76638,3614.9,3613.5,0.19727175]
[1732931307733,2.76638,3614.9,3613.6,0.19727175]
[1732931307861,2.76638,3614.9,3613.4,0.22332164]
[1732931307862,1.6021,3615.1,3613.8,1.6413]
[1732931308056,2.22,3615.2,3613.8,1.6413]
[1732931308057,2.22,3615.2,3613.9,0.93112893]
[1732931308362,2.22,3615.2,3614.1,0.55]
[1732931308557,2.22,3615.2,3614.3,0.55]
[1732931308863,3.33,3615.2,3614.4,0.19727175]
[1732931309058,3.33,3615.2,3614.5,0.19727175]
[1732931309260,3.33,3615.2,3614.6,0.19701568]
[1732931309510,3.33,3615.2,3614.7,0.19701414]
[1732931309794,3.33,3615.2,3614.6,1.6413]
[1732931309795,3.33,3615.2,3614.8,0.38084555]
[1732931309995,3.33,3615.2,3614.9,0.19701414]
[1732931310199,3.33,3615.2,3614.8,0.18383141]
[1732931310401,4.44,3615.2,3614.8,0.18383141]
[1732931311412,4.44,3615.2,3614.8,0.17694824]
[1732931311988,5.55,3615.2,3614.1,1.6413]
[1732931312606,4.33602,3615.1,3614.1,1.6413]
[1732931312986,2.76627,3615.0,3614.1,1.6413]
[1732931313174,1.5698,3615.1,3614.2,0.2764]
[1732931313509,5.55,3615.2,3614.2,0.2764]
[1732931313672,1.11,3615.1,3614.3,0.19177]
[1732931314400,1.11,3615.1,3614.4,0.55]
[1732931314772,1.11,3615.1,3614.5,1.6413]
[1732931314971,1.11,3615.1,3614.1,2.4677]
[1732931315342,1.11,3615.1,3614.1,0.2764]
[1732931315343,1.5698,3615.0,3614.1,0.2764]
[1732931315846,1.5698,3615.0,3614.0,0.2764]
[1732931316078,1.5698,3615.0,3614.0,0.46817]
[1732931316395,2.22,3615.1,3614.1,1.6689683]
[1732931316686,2.22,3615.1,3614.2,0.55]
[1732931317045,2.22,3615.1,3614.4,0.55]
[1732931317346,3.33,3615.1,3614.4,0.55]
[1732931317560,3.33,3615.1,3614.5,0.21913]
[1732931318582,3.33,3615.1,3614.6,0.57766338]
[1732931318779,3.33,3615.1,3614.8,3.78404112]
[1732931319099,3.33,3615.1,3615.0,0.55]
[1732931319100,4.44,3615.1,3615.0,0.55]
[1732931319285,4.44,3615.1,3615.0,1.14753411]
[1732931319444,4.44,3615.1,3614.9,1.6413]
[1732931319849,4.44,3615.1,3615.0,0.55]
[1732931320461,5.55,3615.1,3615.0,0.55]
[1732931320997,5.55,3615.1,3615.0,2.1913]
[1732931322265,6.66,3615.1,3615.0,2.1913]
[1732931322454,6.66,3615.1,3615.0,2.76147411]
[1732931323754,7.77,3615.1,3615.0,2.76147411]
[1732931324802,7.77,3615.1,3615.0,5.99551523]
[1732931325456,7.77,3615.1,3615.0,6.19309583]
[1732931325457,8.88,3615.1,3615.0,6.19309583]
[1732931327056,9.99,3615.1,3615.0,6.19309583]
[1732931328862,11.1,3615.1,3615.0,6.19309583]
[1732931329363,11.1,3615.1,3615.0,5.99551523]
[1732931330062,11.1,3615.1,3615.0,8.90251523]
[1732931330546,12.21,3615.1,3615.0,8.90251523]
[1732931331100,12.21,3615.1,3615.0,9.10010679]
[1732931331307,12.21,3615.1,3615.0,6.19310679]
[1732931331509,12.21,3615.1,3615.0,9.10010679]
[1732931332195,13.32,3615.1,3615.0,9.10010679]
[1732931333067,13.32,3615.1,3615.0,8.90251523]
[1732931333269,13.32,3615.1,3615.0,9.17891523]
[1732931334009,14.43,3615.1,3615.0,9.17891523]
[1732931334690,2.02355674,3615.1,3615.0,9.17891523]
[1732931335010,5.55,3615.2,3615.1,5.4148]
[1732931335222,5.55,3615.2,3615.1,6.54890496]
[1732931335428,1.11,3615.2,3615.1,4.96750496]
[1732931335738,1.11,3615.2,3615.1,8.20154608]
[1732931335915,1.11,3615.2,3615.1,9.92705653]
[1732931336230,1.11,3615.9,3615.8,5.64184112]
[1732931336427,1.11,3615.9,3615.8,6.20602523]
[1732931336992,2.22,3615.9,3615.8,0.2764]
[1732931337192,2.22,3615.9,3615.1,1.27821541]
[1732931337193,2.22,3615.9,3615.2,0.2764]
[1732931337429,2.22,3615.9,3615.8,5.09184112]
[1732931337634,9.99,3616.9,3616.0,1.8578]
[1732931337802,9.99,3616.9,3616.7,1.5814]
[1732931337999,6.02043239,3616.9,3616.8,0.2764]
[1732931338235,6.02043239,3616.9,3616.8,0.1973779]
[1732931338415,6.02043239,3616.9,3616.8,1.2486598]
[1732931338622,7.13043239,3616.9,3616.8,1.2486598]
[1732931339403,6.63043239,3616.9,3616.8,1.2486598]
[1732931340233,7.74043239,3616.9,3616.8,1.2486598]
[1732931340611,7.74043239,3616.9,3616.8,1.56381959]
[1732931341293,7.74043239,3616.9,3616.8,2.12744765]
[1732931341835,8.85043239,3616.9,3616.8,2.12744765]
[1732931342692,8.85043239,3616.9,3616.8,2.12681839]
[1732931343536,9.96043239,3616.9,3616.8,2.12681839]
[1732931344124,4.429,3617.3,3616.8,2.12681839]
[1732931344336,4.429,3617.3,3617.0,0.55]
[1732931344636,4.429,3617.3,3617.2,0.55]
[1732931344851,4.429,3617.3,3617.2,0.74688531]
[1732931345023,5.539,3617.3,3617.2,0.74688531]
[1732931345415,5.539,3617.3,3617.2,2.39078531]
[1732931345746,5.29298054,3617.3,3617.2,3.310629]
[1732931346238,5.29298054,3617.3,3617.2,1.666729]
[1732931346394,6.80068054,3617.3,3617.2,0.51190843]
[1732931346598,7.91068054,3617.3,3616.6,0.31502312]
[1732931346838,7.91068054,3617.3,3616.7,0.19690068]
[1732931347048,1.5077,3617.2,3616.8,0.19690068]
[1732931347198,1.6052,3617.1,3616.1,0.3150477]
[1732931347400,1.6052,3617.1,3616.2,0.19696439]
[1732931347710,1.6052,3617.1,3615.5,0.1]
[1732931347711,1.6052,3617.1,3616.3,0.19696439]
[1732931347916,1.6052,3617.1,3616.4,0.19696439]
[1732931348150,2.7152,3617.1,3616.5,0.22461285]
[1732931348355,2.7152,3617.1,3616.6,0.19696439]
[1732931348503,1.6052,3616.7,3614.9,1.6685]
[1732931348701,1.6052,3616.7,3615.1,2.53376456]
[1732931348935,1.6052,3616.7,3615.0,0.19716862]
[1732931348936,1.6052,3616.7,3615.2,0.19716862]
[1732931349139,1.6052,3616.7,3615.5,3.23162022]
[1732931349440,1.11,3617.1,3616.1,0.2764]
[1732931349441,1.6052,3617.0,3616.1,0.2764]
[1732931349752,1.6052,3617.0,3616.3,0.8264]
[1732931349945,1.11,3616.7,3616.4,0.19715258]
[1732931350234,1.11,3616.7,3616.5,0.74715258]
[1732931350406,1.11,3616.7,3616.6,0.74715258]
[1732931350607,1.11,3616.7,3616.6,0.90450784]
[1732931351122,1.11,3616.7,3616.6,0.74715258]
[1732931351512,2.22,3616.7,3616.6,0.74715258]
[1732931351806,2.22,3616.7,3616.6,0.19715258]
[1732931352637,2.22,3616.7,3616.6,0.47355258]
[1732931352957,2.22,3616.7,3616.6,1.02355258]
[1732931353239,2.22,3616.7,3616.6,1.60591986]
[1732931353540,3.33,3616.7,3616.6,1.60591986]
[1732931354739,3.33,3616.7,3616.6,1.92151177]
[1732931355110,4.44,3616.7,3616.6,1.92151177]
[1732931356005,4.44,3616.7,3616.6,1.37151177]